Cogmind - Beta 13 @@@ ROGUE MODE // 2024.04.09 @ 21:15:46 Player: DURANDAL Result: Destroyed by X-67 Chaingunner with Minigun Performance ------------- Evolutions (5) 2500 Regions Visited (8) 1600 Robots Destroyed (53) 265 Value Destroyed (2249) 2249 Prototype IDs (4) 80 Alien Tech Used (0) 0 Bonus (300) 300 TOTAL SCORE: 6994 Bonus ------- Aligned with FarCom 300 Cogmind --------- Core Integrity 0/1000 Matter 120/300 Energy 54/100 System Corruption 1% Temperature Cool (0) Movement Core (1450) Ox28 Location -5/Factory Parts ------- > --- POWER (2) -------- (None) > --- PROPULSION (5) --- (None) > --- UTILITY (6) ------ Huge Storage Unit > --- WEAPON (4) ------- Heavy Laser Mining Claw > --- INVENTORY (25) --- Micro Fission Core Light Treads Light Treads Large Storage Unit High-capacity Matter Pod (0) Improved Kinecellerator Layered Heavy Armor Plating Advanced Hacking Suite System Shield Heavy Mass Driver Peak State ------------ > --- POWER ------------ Light Angular Momentum Engine Micro Fission Core > --- PROPULSION ------- Carbon-fiber Leg Titanium Leg Flexi-carbon Leg Potential Leg Potential Leg > --- UTILITY ---------- Huge Storage Unit Structural Scanner Trap Scanner Improved Kinecellerator Improved Medium Armor Plating Focal Shield > --- WEAPON ----------- Heavy Assault Rifle Autogun Autogun Gauss Rifle > --- INVENTORY -------- Micro Fission Core Light Treads Light Treads Light Treads Light Treads Light Treads Armored Treads Titanium Leg Improved Heat Sink Large Storage Unit High-capacity Matter Pod Improved Kinecellerator Layered Heavy Armor Plating System Shield Light Assault Rifle Slug Cannon Grenade Launcher Mining Laser Mining Claw [Rating: 77] Favorites ----------- Power Ion Engine Engine Ion Engine Power Core Light Nuclear Core Propulsion Potential Leg Treads Light Treads Leg Potential Leg Utility Huge Storage Unit Device ECM Suite Storage Huge Storage Unit Protection Improved Medium Armor Plating Weapon Medium Laser Energy Gun Medium Laser Ballistic Gun Assault Rifle Ballistic Cannon Slug Cannon Launcher Grenade Launcher Special Weapon Mining Laser Slashing Weapon Mining Claw Build | -11 -10 -10 -10 -9 -8 -7 -6 -5 ------- Run | Yrd Mat Min Exi Min Mat Fac Fac Fac Slots Evolved 10 | . . . . . 4 2 2 2 Power 1 | . . . . . . . 1 . Propulsion 3 | . . . . . 2 . . 1 Utility 4 | . . . . . 2 . 1 1 Weapon 2 | . . . . . . 2 . . Parts Attached 69 | 6 5 3 2 1 11 3 3 35 Power 11 | 1 2 1 . . 1 1 1 4 Engine 6 | 1 2 . . . . 1 . 2 Core 5 | . . 1 . . 1 . 1 2 Reactor . | . . . . . . . . . Propulsion 21 | 2 . 2 2 . 3 . 1 11 Treads 9 | 2 . 2 . . 1 . . 4 Leg 12 | . . . 2 . 2 . 1 7 Wheel . | . . . . . . . . . Hover . | . . . . . . . . . Flight . | . . . . . . . . . Utility 14 | 1 3 . . . 2 . 1 7 Device 9 | . 1 . . . 2 . 1 5 Storage 4 | 1 2 . . . . . . 1 Processor . | . . . . . . . . . Hackware . | . . . . . . . . . Protection 1 | . . . . . . . . 1 Artifact . | . . . . . . . . . Weapon 23 | 2 . . . 1 5 2 . 13 Energy Gun 2 | 1 . . . . . . . 1 Energy Cannon . | . . . . . . . . . Ballistic Gun 15 | 1 . . . . 5 2 . 7 Ballistic Cannon 2 | . . . . 1 . . . 1 Launcher 2 | . . . . . . . . 2 Special Weapon 1 | . . . . . . . . 1 Impact Weapon . | . . . . . . . . . Slashing Weapon 1 | . . . . . . . . 1 Piercing Weapon . | . . . . . . . . . Special Melee Weapon . | . . . . . . . . . Unidentified Prototypes 2 | . . . 1 . 1 . . . Parts Lost 42 | . . . . . 4 . . 38 Power 7 | . . . . . 2 . . 5 Propulsion 10 | . . . . . . . . 10 Utility 8 | . . . . . . . . 8 Weapon 17 | . . . . . 2 . . 15 Highest Loss Streak 18 | . . . . . 3 . . 18 To Critical Strikes . | . . . . . . . . . Average Slot Usage (%) 94 | . 90 100 100 100 87 100 100 90 Engine 6 | . 14 9 . . . 7 6 3 Core 4 | . . 4 14 14 7 . 6 5 Treads 13 | . 28 28 20 . 4 . . . Leg 14 | . . . 7 28 23 30 26 26 Device 17 | . 5 14 14 14 24 23 26 23 Storage 10 | . 14 14 14 14 9 7 6 6 Energy Gun 7 | . 14 14 14 14 1 . . . Ballistic Gun 17 | . 14 14 14 . 14 30 26 19 Naked Turns . | . . . . . . . . . Heaviest Build 125 | 12 91 91 91 96 100 100 109 125 Greatest Support 112 | 40 40 40 60 60 82 82 87 112 Greatest Overweight (x) 28 | . 2 2 2 1 1 1 1 28 Average Overweight (x) 1 | . 1 2 1 1 1 1 1 . Largest Inventory Capacity 25 | 8 25 25 25 25 25 25 25 25 Average Capacity 23 | 7 19 25 25 25 25 25 25 25 Most Carried 25 | 5 19 24 25 25 25 25 24 25 Average Carried 19 | 1 11 20 24 25 23 24 23 22 Final Capacity 25 | 8 25 25 25 25 25 25 25 25 Final Carried 25 | 2 19 24 25 25 25 25 23 12 Class Distribution -------------------- 53% | Mutant 25% | Scavenger-Skirmisher 18% | Infiltrator-Skirmisher Dominant Class ---------------- Mutant | -10/Materials Mutant | -10/Mines Mutant | -10/Exiles Mutant | -9/Mines Infiltrator-Skirmisher | -8/Materials Infiltrator-Skirmisher | -7/Factory Scavenger-Skirmisher | -6/Factory Scavenger-Skirmisher | -5/Factory Resources | -11 -10 -10 -10 -9 -8 -7 -6 -5 ----------- Run | Yrd Mat Min Exi Min Mat Fac Fac Fac Matter Collected 1919 | 225 156 287 . 60 272 163 78 678 Remotely . | . . . . . . . . . Salvage Created 2335 | . 235 308 . 69 384 21 114 1204 Parts 107 | . 9 16 . 3 21 1 5 52 Haulers Intercepted 2 | . 1 . . . 1 . . . Recyclers Shooed 7 | . 1 . . . 1 . . 5 Parts Field Recycled . | . . . . . . . . . Retrieved Matter . | . . . . . . . . . Parts Self-Destructed . | . . . . . . . . . Prevented . | . . . . . . . . . Kills | -11 -10 -10 -10 -9 -8 -7 -6 -5 ------- Run | Yrd Mat Min Exi Min Mat Fac Fac Fac Combat Hostiles Destroyed 45 | . 4 9 . 2 6 . 2 22 Melee 1 | . . . . . . . . 1 Guns 42 | . 4 9 . 2 6 . 2 19 Cannons 1 | . . . . . . . . 1 AOE 1 | . . . . . . . . 1 Classes Destroyed 10 | . 4 1 . . 1 . . 4 Builder 3 | . . . . . 2 . . 1 Hauler 2 | . 1 . . . 1 . . . Operator 2 | . 1 . . . . 1 . . Watcher 1 | . 1 . . . . . . . Swarmer 3 | . . 3 . . . . . . Grunt 33 | . 4 6 . 2 6 . 2 13 Sentry 2 | . . . . . . . . 2 Hunter 2 | . . . . . . . . 2 Programmer 4 | . . . . . . . . 4 Heavy 1 | . . . . . . . . 1 Best Kill Streak 7 | . 1 3 . 2 7 1 2 3 Combat Bots Only 6 | . 1 3 . 2 6 . 2 2 Max Kills in Single Turn 2 | . 1 1 . 1 1 1 1 2 Gunslinging 1 | . . . . . . . . 1 Exploded 1 | . . . . . . . . 1 Melee 1 | . . . . . . . . 1 Uniques/NPCs Destroyed . | . . . . . . . . . Combat | -11 -10 -10 -10 -9 -8 -7 -6 -5 -------- Run | Yrd Mat Min Exi Min Mat Fac Fac Fac Hostile Shots Fired 509 | . 17 47 . 14 39 . 7 385 Missed 143 | . 3 14 . 2 6 . 2 116 Damage Taken 6773 | . 149 390 . 160 565 . 71 5438 Core 1192 | . 10 64 . 34 80 . . 1004 Absorbed by Shields . | . . . . . . . . . Ignored by Resistances 265 | . . . . . . . . 265 Core Remaining (%) 88 | 100 . . . 56 85 100 100 . Volleys Fired 178 | . 26 20 . 5 28 8 4 87 Largest 4 | . 2 2 . 2 2 4 4 4 Hottest 169 | . 70 70 . 98 50 91 91 169 Shots Fired 457 | . 52 40 . 10 55 32 16 252 Gun 431 | . 52 40 . 5 55 32 16 231 Cannon 16 | . . . . 5 . . . 11 Launcher 9 | . . . . . . . . 9 Special 1 | . . . . . . . . 1 Kinetic 395 | . 26 20 . 5 55 32 16 241 Thermal 53 | . 26 20 . 5 . . . 2 Explosive 9 | . . . . . . . . 9 Electromagnetic . | . . . . . . . . . Robot Hit Streak 11 | . 10 11 . 3 11 5 9 10 Robot Miss Streak 4 | . 2 3 . 1 3 4 1 4 Penetration Max . | . . . . . . . . . Secondary Targets 6 | . . 1 . . . . 1 4 Max Gunslinging Chain 1 | . . 1 . . . . 1 1 Shots Hit Robots 292 | . 31 27 . 6 38 16 13 161 Core Hits 156 | . 13 17 . 4 18 5 8 91 Critical Kills 2 | . . 1 . . 1 . . . Critical Parts Destroyed . | . . . . . . . . . Critical Strikes 7 | . 4 1 . 1 1 . . . Burn 5 | . 4 . . 1 . . . . Destroy 2 | . . 1 . . 1 . . . Melee Attacks 7 | . . . . . . . . 7 Impact . | . . . . . . . . . Slashing 7 | . . . . . . . . 7 Piercing . | . . . . . . . . . Sneak Attacks . | . . . . . . . . . Combat Hostiles . | . . . . . . . . . Follow-up Attacks . | . . . . . . . . . Damage Inflicted 5466 | . 417 341 . 84 679 232 224 3489 Guns 4441 | . 395 337 . 62 658 232 224 2533 Cannons 183 | . . . . 22 . . . 161 Explosions 554 | . . . . . . . . 554 Melee 93 | . . . . . . . . 93 Ramming 171 | . 22 4 . . 21 . . 124 Kinetic 4141 | . 157 174 . 22 658 232 224 2674 Thermal 507 | . 238 163 . 62 . . . 44 Explosive 554 | . . . . . . . . 554 Electromagnetic . | . . . . . . . . . Impact . | . . . . . . . . . Slashing 93 | . . . . . . . . 93 Piercing . | . . . . . . . . . Highest Corruption 4 | . . . . . 2 . . 4 Average Corruption 2 | . . . . . 2 . . 2 Corruption Purged 5 | . . . . . . . . 5 Corruption Blocked . | . . . . . . . . . Effects 30 | . . . . . 7 . . 23 Message Errors 8 | . . . . . 1 . . 7 Matter Fused 4 | . . . . . 1 . . 3 Heat Flow Errors 3 | . . . . . 1 . . 2 Energy Discharges 6 | . . . . . 1 . . 5 Data Loss (minor) 2 | . . . . . 2 . . . Data Loss (major) 3 | . . . . . . . . 3 Alerts 2 | . . . . . 1 . . 1 Weapon Failures 2 | . . . . . . . . 2 Overload Shots . | . . . . . . . . . Overflow Damage 4 | . . . . . . . . 4 Projectiles . | . . . . . . . . . Explosions 4 | . . . . . . . . 4 Melee . | . . . . . . . . . Knockbacks 5 | . . . . 1 . . . 4 Impact 1 | . . . . . . . . 1 Kinetic 4 | . . . . 1 . . . 3 Secondary . | . . . . . . . . . Self-Inflicted Damage 60 | . . . . . . . . 60 Shots 2 | . . . . . . . . 2 Rammed 5 | . 4 1 . . . . . . Targets Rammed 18 | . 5 1 . . 3 . . 9 Kicked 12 | . . . . . 3 . . 9 Crushed 1 | . 1 . . . . . . . Highest Temperature 253 | . 81 120 . 234 217 67 109 253 Average Temperature 47 | . 24 45 . 120 32 34 51 52 Received Heat Transfer 2298 | . 84 201 . 66 333 . . 1614 Siege Activations . | . . . . . . . . . Robots Corrupted . | . . . . . . . . . Combat Hostiles . | . . . . . . . . . Parts Fried . | . . . . . . . . . Impact Corruptions . | . . . . . . . . . Robots Melted . | . . . . . . . . . Combat Hostiles . | . . . . . . . . . Parts Melted 7 | . 3 . . 3 . . . 1 Heat Transferred 1826 | . 999 481 . 259 . . . 87 Parts Sabotaged . | . . . . . . . . . Parts Stolen . | . . . . . . . . . Parts Stripped . | . . . . . . . . . Power Chain Reactions . | . . . . . . . . . Alert | -11 -10 -10 -10 -9 -8 -7 -6 -5 ------- Run | Yrd Mat Min Exi Min Mat Fac Fac Fac Peak Influence 199 | . 199 170 . 42 179 91 84 188 Initial 81 | . . . . . 16 81 44 . Average 52 | . 34 40 . 34 59 88 40 71 Maximum Alert Level . | . . . . . . . . . Low Security (%) 100 | 100 100 100 . 100 100 100 100 100 Level 1 . | . . . . . . . . . Level 2 . | . . . . . . . . . Level 3 . | . . . . . . . . . Level 4 . | . . . . . . . . . Level 5 . | . . . . . . . . . High Security . | . . . . . . . . . Max Security . | . . . . . . . . . Squads Dispatched 19 | . 3 . . . 3 2 3 8 Investigation 4 | . 1 . . . 1 . 1 1 Extermination 3 | . . . . . . 1 . 2 Reinforcement 12 | . 2 . . . 2 1 2 5 Assault . | . . . . . . . . . Garrison . | . . . . . . . . . Intercept . | . . . . . . . . . Searches Triggered . | . . . . . . . . . Construction Impeded 3 | . . . . . . . . 3 Haulers Reinforced . | . . . . . . . . . Active Scanning Responses . | . . . . . . . . . Cargo Convoy Interrupts . | . . . . . . . . . Stealth | -11 -10 -10 -10 -9 -8 -7 -6 -5 --------- Run | Yrd Mat Min Exi Min Mat Fac Fac Fac Distress Signals 6 | . 2 . . . 1 1 . 2 Communications Jammed . | . . . . . . . . . Distress Signals . | . . . . . . . . . Times Spotted 114 | . 16 9 . 3 13 14 14 45 Peak Tracking Total 6 | . 2 2 . 3 6 3 4 6 Tactical Retreats 7 | . 2 . . . . . 2 3 Traps | -11 -10 -10 -10 -9 -8 -7 -6 -5 ------- Run | Yrd Mat Min Exi Min Mat Fac Fac Fac Traps Triggered 3 | . . . . . 2 . . 1 Indirectly . | . . . . . . . . . Trap Hack Attempts . | . . . . . . . . . Triggered . | . . . . . . . . . Disarmed . | . . . . . . . . . Reprogrammed . | . . . . . . . . . Reused . | . . . . . . . . . Traps Extracted . | . . . . . . . . . Installed . | . . . . . . . . . Triggered . | . . . . . . . . . Machines | -11 -10 -10 -10 -9 -8 -7 -6 -5 ---------- Run | Yrd Mat Min Exi Min Mat Fac Fac Fac Machines Disabled 2 | . . . . . 2 . . . Max in Single Turn 1 | . . . . . 1 . . . Machines Repaired . | . . . . . . . . . Machines Dismantled . | . . . . . . . . . Machines Sabotaged . | . . . . . . . . . Overloaded Fab Kills . | . . . . . . . . . Hacking | -11 -10 -10 -10 -9 -8 -7 -6 -5 --------- Run | Yrd Mat Min Exi Min Mat Fac Fac Fac Machines Accessed 12 | . 5 . . . 4 2 . 1 Terminals 9 | . 3 . . . 4 1 . 1 Fabricators 1 | . . . . . . 1 . . Repair Stations . | . . . . . . . . . Recycling Units 2 | . 2 . . . . . . . Scanalyzers . | . . . . . . . . . Garrison Access . | . . . . . . . . . Total Hacks 33 | . 14 . . . 6 4 . 9 Successful 18 | . 6 . . . 5 1 . 6 Failed 14 | . 8 . . . 1 3 . 2 Catastrophic 2 | . 1 . . . . 1 . . Database Lockouts 1 | . . . . . . . . 1 Manual 4 | . 2 . 1 . 1 . . . Terminals 25 | . 9 . . . 6 1 . 9 Fabricators 3 | . . . . . . 3 . . Repair Stations . | . . . . . . . . . Recycling Units 5 | . 5 . . . . . . . Scanalyzers . | . . . . . . . . . Garrison Access . | . . . . . . . . . Terminal Hacks 13 | . 2 . . . 4 1 . 6 Record 6 | . . . . . . . . 6 Prototype ID Bank 1 | . . . . . 1 . . . Open DSF 1 | . . . . . . 1 . . Emergency Access Points 1 | . . . . . 1 . . . Alert Level 1 | . . . . . 1 . . . Locate Traps 1 | . 1 . . . . . . . Zone Layout 2 | . 1 . . . 1 . . . Fabricator Hacks . | . . . . . . . . . Repair Station Hacks . | . . . . . . . . . Recycling Unit Hacks 3 | . 3 . . . . . . . Report Inventory 2 | . 2 . . . . . . . Retrieve Components 1 | . 1 . . . . . . . Scanalyzer . | . . . . . . . . . Garrison Access Hacks . | . . . . . . . . . Unauthorized Hacks 2 | . 1 . . . 1 . . . Terminals 2 | . 1 . . . 1 . . . Operators 2 | . 1 . . . 1 . . . Fabricators . | . . . . . . . . . Repair Stations . | . . . . . . . . . Recycling Units . | . . . . . . . . . Scanalyzers . | . . . . . . . . . Garrison Access . | . . . . . . . . . Data Cores Recovered . | . . . . . . . . . Used . | . . . . . . . . . Hacking Detections 9 | . 4 . . . 3 1 . 1 Full Trace Events 2 | . 1 . . . . . . 1 Feedback Events . | . . . . . . . . . Feedback Blocked . | . . . . . . . . . Robot Schematics Acquired . | . . . . . . . . . Robots Built . | . . . . . . . . . Authchips . | . . . . . . . . . Time . | . . . . . . . . . Total Robot Build Rating . | . . . . . . . . . Part Schematics Acquired . | . . . . . . . . . Parts Built . | . . . . . . . . . Authchips . | . . . . . . . . . Time . | . . . . . . . . . Total Part Build Rating . | . . . . . . . . . Parts Repaired . | . . . . . . . . . Time . | . . . . . . . . . Parts Recycled . | . . . . . . . . . Recycled Matter . | . . . . . . . . . Retrieved Matter . | . . . . . . . . . Retrieved Components 9 | . 9 . . . . . . . Parts Scanalyzed . | . . . . . . . . . Part Schematics Acquired . | . . . . . . . . . Parts Damaged . | . . . . . . . . . Bothacking | -11 -10 -10 -10 -9 -8 -7 -6 -5 ------------ Run | Yrd Mat Min Exi Min Mat Fac Fac Fac Used RIF Installer . | . . . . . . . . . Robots Hacked . | . . . . . . . . . Non-combat . | . . . . . . . . . Combat . | . . . . . . . . . Robot Hacks Applied . | . . . . . . . . . Relay Couplers Released . | . . . . . . . . . Fabnet Peak Effective % . | . . . . . . . . . Robots Rewired . | . . . . . . . . . Allies Hacked . | . . . . . . . . . Hacks Repelled . | . . . . . . . . . Allies | -11 -10 -10 -10 -9 -8 -7 -6 -5 -------- Run | Yrd Mat Min Exi Min Mat Fac Fac Fac Total Allies 1 | . . 1 . . . . . . Largest Group 1 | . . 1 1 . . . . . Highest-Rated Group 31 | . . 31 31 . . . . . Highest-Rated Ally 31 | . . 31 31 . . . . . Total Orders . | . . . . . . . . . Ally Attacks . | . . . . . . . . . Total Damage . | . . . . . . . . . Kills . | . . . . . . . . . Allies Corrupted . | . . . . . . . . . Allies Melted . | . . . . . . . . . Intel | -11 -10 -10 -10 -9 -8 -7 -6 -5 ------- Run | Yrd Mat Min Exi Min Mat Fac Fac Fac Robot Analysis Total . | . . . . . . . . . Derelict Logs Recovered 1 | . . . . 1 . . . . Drone Launches . | . . . . . . . . . Drone Recoveries . | . . . . . . . . . Exploration | -11 -10 -10 -10 -9 -8 -7 -6 -5 ------------- Run | Yrd Mat Min Exi Min Mat Fac Fac Fac Turns Passed 6359 | 75 1422 1063 538 106 730 393 498 1534 Spaces Moved 2543 | 45 533 308 210 53 357 198 220 619 Core 10 | 9 . . . . . . . 1 Treads 1007 | 36 533 308 118 . . . . 12 Legs 1526 | . . . 92 53 357 198 220 606 Wheels . | . . . . . . . . . Hover . | . . . . . . . . . Flight . | . . . . . . . . . Fastest Speed 50 | 50 160 320 170 170 170 177 177 104 Average Speed 212 | 138 241 320 254 170 171 177 177 175 Slowest Speed 1450 | 160 320 320 320 170 177 177 177 1450 Overloaded Moves . | . . . . . . . . . Propulsion Burnouts . | . . . . . . . . . Robots Hopped . | . . . . . . . . . Cave-ins Triggered . | . . . . . . . . . Exploration Rate (%) 33 | 4 87 52 60 22 33 9 6 24 Regions Visited 8 Branch Regions 3 Pre-discovered Areas 1 | . . . . 1 . . . . Known Exits Taken . | . . . . . . . . . Unknown Exits Taken 8 | 1 1 1 1 1 1 1 1 . Scrap Searched . | . . . . . . . . . Spaces Dug . | . . . . . . . . . Terrain Destroyed 32 | . . . . 3 . . . 29 Melee . | . . . . . . . . . Projectile 8 | . . . . 3 . . . 5 AOE 24 | . . . . . . . . 24 Terrain Rammed . | . . . . . . . . . Walls Destroyed . | . . . . . . . . . Machines Disabled . | . . . . . . . . . Actions | -11 -10 -10 -10 -9 -8 -7 -6 -5 --------- Run | Yrd Mat Min Exi Min Mat Fac Fac Fac Total 3174 | 58 610 343 214 59 435 229 322 904 Wait 282 | . 24 7 . 1 18 12 94 126 Move 2535 | 44 532 307 209 52 356 197 219 619 Hop . | . . . . . . . . . Pick Up 71 | 8 18 5 2 . 13 6 1 18 Fast Attach . | . . . . . . . . . Attach 47 | 6 1 . . . 7 3 2 28 Detach . | . . . . . . . . . Swap 22 | . 4 3 2 1 4 . 1 7 Drop 14 | . . . 1 . 6 3 1 3 Fire 178 | . 26 20 . 5 28 8 4 87 Melee 7 | . . . . . . . . 7 Ram . | . . . . . . . . . Kick 12 | . . . . . 3 . . 9 Crush 6 | . 5 1 . . . . . . Escape Stasis . | . . . . . . . . . Rewire . | . . . . . . . . . Trap . | . . . . . . . . . Miscellaneous . | . . . . . . . . . Route ------- -11/Scrapyard -10/Materials (discovered 5 exits: [*Mat x3] / [*Min x2]) -10/Mines (discovered 3 exits: [*Mat x2] / *Exi) -10/Exiles -9/Mines -8/Materials -7/Factory -6/Factory (discovered 3 exits: *Fac / [*Low x2]) -5/Factory History --------- Turn | Location | Event 19 | -11/Scrapyard | Discovered new exit (range 16) 76 | -11/Scrapyard | Entered Materials 301 | -10/Materials | Build established: Mutant 380 | -10/Materials | Discovered new exit (range 11) 692 | -10/Materials | Discovered new exit (range 16) 797 | -10/Materials | Discovered new exit (range 16) 1383 | -10/Materials | Discovered new exit (range 8) 1424 | -10/Materials | Discovered new exit (range 16) 1498 | -10/Materials | Entered Mines 1658 | -10/Mines | Discovered new exit (range 8) 1830 | -10/Mines | Discovered new exit (range 9) 2321 | -10/Mines | Received a Mining Laser from a helpful Derelict 2454 | -10/Mines | YI-UF0 nonchalantly dropped a Grenade Launcher on the ground 2508 | -10/Mines | A weapon hastily lodged in a ceiling crevice suddenly fell to the ground 2548 | -10/Mines | Deemed a non-threat by the Exiles lab entrance 2548 | -10/Mines | Discovered new exit (range 5) 2561 | -10/Mines | Entered Exiles 2561 | -10/Exiles | Accompanied by 1 ally 2635 | -10/Exiles | Met 8R-AWN 2696 | -10/Exiles | Met EX-HEX 2779 | -10/Exiles | Met EX-BIN 2840 | -10/Exiles | Aligned with FarCom system 2843 | -10/Exiles | Given EX-Vault access code 2920 | -10/Exiles | Opened EX-Vault 2930 | -10/Exiles | Found Prototype Leg 2934 | -10/Exiles | Found Prototype Leg 2942 | -10/Exiles | Identified Potential Leg (x2) 2977 | -10/Exiles | Warned to stay clear of 0b10 Research branches 3024 | -10/Exiles | Met EX-DEC 3081 | -10/Exiles | Discovered new exit (range 14) 3099 | -10/Exiles | Left Exiles lab with Potential Leg 3099 | -10/Exiles | Entered Mines 3106 | -9/Mines | Learned location of Storage (-7) 3116 | -9/Mines | Met a Derelict bent on vengeance 3182 | -9/Mines | Discovered new exit (range 15) 3196 | -9/Mines | Received a Rocket Launcher from a helpful Derelict 3205 | -9/Mines | Entered Materials 3205 | -8/Materials | Evolved 4 slots: Propulsion x2, Utility x2 3591 | -8/Materials | Build established: Infiltrator-Skirmisher 3672 | -8/Materials | Met 7R-MNS 3894 | -8/Materials | Discovered new exit (range 5) 3895 | -8/Materials | Lost 3 parts (1p2w) 3935 | -8/Materials | Entered Factory 3935 | -7/Factory | Evolved 2 slots: Weapon x2 3936 | -7/Factory | Caught up to 7R-MNS 4318 | -7/Factory | Discovered new exit (range 6) 4328 | -7/Factory | Entered another Factory area 4328 | -6/Factory | Evolved 2 slots: Power x1, Utility x1 4329 | -6/Factory | Caught up to 7R-MNS 4415 | -6/Factory | Discovered new exit (range 13) 4443 | -6/Factory | Discovered new exit (range 15) 4622 | -6/Factory | Build established: Scavenger-Skirmisher 4812 | -6/Factory | Discovered new exit (range 10) 4826 | -6/Factory | Entered another Factory area 4826 | -5/Factory | Evolved 2 slots: Propulsion x1, Utility x1 4827 | -5/Factory | Caught up to 7R-MNS 5632 | -5/Factory | Lost 4 parts (1p1u2w) 5799 | -5/Factory | Lost 3 parts (1p1u1w) 6067 | -5/Factory | Central database locked down 6216 | -5/Factory | Lost 5 parts (1p2u2w) 6294 | -5/Factory | Core integrity fell below 50% 6316 | -5/Factory | Core integrity fell below 20% 6345 | -5/Factory | Lost 18 parts (1p8n4u5w) 6360 | -5/Factory | Destroyed by X-67 Chaingunner with Minigun Last Messages --------------- 06294_ Titanium Leg destroyed. 06294_ Critical hit (Burn: +37). 06308_ X-67 Chaingunner destroyed. 06310_ Acquired 37 matter. 06311_ Acquired 17 matter. 06312_ Titanium Leg destroyed. 06312_ U-05 Engineer lays Concrete. 06314_ Potential Leg destroyed. 06314_ U-05 Engineer lays Concrete. 06316_ Acquired Hvy. Machine Gun. 06316_ U-05 Engineer builds a Wall. 06323_ G-50 Soldier destroyed. 06333_ U-05 Engineer lays Concrete. 06346_ Critical hit (Burn: +37). 06347_ Acquired Hvy. Laser. 06348_ Hvy. Machine Gun destroyed. 06350_ U-05 Engineer lays Concrete. 06352_ U-05 Engineer destroyed. 06358_ Mining Laser destroyed. 06358_ G-50 Soldier destroyed. Map ----- +----------------------------------------------------+ | | | | | | | | | | | | | | | | | | | | | ????????????????????????###??????????????????????? | | ????????????????????????###??????????????????????? | | ????????????????????????#! ??????????????????????? | | ???????########?????????? ???????????????????????? | | ??################??????? "??????????????????????? | | ??#######"##"#####??????? "??????????????????????? | | #### ##??????? "??????????????????????? | | #### ######### ""?????????????????????? | | + ######### ????????????????????? | | #### ####T"### """""" ##??????????????? | | #### #### "### """""" ##??????????????? | | ??## % # # """""" ##??????????????? | | ??## % # # """""" ##??????????????? | | #?## # #|= ##??????????????? | | #?## # %#%"""""" ????????????????? | | #?## %= # *x@! """" ????????????????? | | #?## % # %g#%"""""" # ??????????????? | | #?## = # % #[!""""" # ??????????????? | | #?########+###### #! # ??????????????? | | #?#### %[ ## ########## ??????????????? | | #???## * + ??????????????? | | %= h # ??????????????? | | # ??????????????? | | h " ??????????????? | | # %????????????? | | # ???????????? | | ##+### # ?? ???????????? | | # #############+###+# ??????????????? | | ???? ### ########## # ??????????????? | | ???? ###^^^^^####????????????????????????????????? | | ???? ### ??????????????????????????????????? | | ??????## ???????????????????????????????????? | | ?????? ??????????????????????????????????? | | ??????## ??????????????????????????????????? | | ??????## ??????????????????????????????????? | | ??????####+####??????????????????????????????????? | | ??????? ??????????????????????????????????? | | ?????????????????????????????????????????????????? | | ?????????????????????????????????????????????????? | | ?????????????????????????????????????????????????? | +----------------------------------------------------+ Best States ------------- Heat Dissipation 54 Energy Generation 28 Energy Capacity 310 Matter Stores 300 Matter Capacity 500 Sight Range 16 Terrain Scan Density 10 ECM Strength 1 Armor Coverage 225 Resistance: KI 20 Evasion (%) 55 Recoil Reduction 4 Kinecelleration 40 Item Schematics ----------------- None Robot Schematics ------------------ None Fabricated ------------ Nothing Alien Tech Used ----------------- None Achievements -------------- None Challenges ------------ None Game ------ Seed ExoskeletonFireProjector Manual? 0 Play Time 00:53:26 Cumulative 19.2 hours Start 2024.04.09 @ 20:18:41 End 2024.04.09 @ 21:15:46 Sessions 1 Manual Loads 0 Difficulty Rogue Special Mode None Game No. 34 Rogue 34 Adventurer 0 Explorer 0 Win Type - Total 0 Types 0/0/0/0/0/0/0/0/0 Lore% 20 Gallery% 18 Achievement% 17 Wizard Run 0 Options --------- Layout 1 ASCII 0 Keyboard 0 Movement Numpad Keybinds 0 Fullscreen 1 Font 24/Smallcaps Map View 50x35 Zoom Use 0% Tactical HUD 1 Map Filters NONE Filters NONE Steam 1 RUN: 0f6e8ec0-e705-4050-96ca-3d5969740d79